fUSD/lending_fUSD_20260701
["ID","MTS","AMOUNT","RATE_DAILY","PERIOD"]
[426802950,1782840638000,-1217.0,0.00025229,2]
[426802953,1782840638000,-350.3770228,0.00025726,2]
[426802949,1782840638000,-1231.0,0.00025229,2]
[426802951,1782840638000,-3651.0,0.00025229,2]
[426802952,1782840638000,-5834.0,0.00025229,2]
[426802955,1782840638000,-486.99554598,0.00025726,2]
[426802957,1782840638000,-161.20806992,0.00025726,2]
[426802956,1782840638000,-547.10911867,0.00025726,2]
[426802959,1782840638000,-317.74631995,0.00025726,2]
[426802958,1782840638000,-237.44666997,0.00025726,2]
[426802960,1782840638000,-235.70312122,0.00025726,2]
[426802961,1782840638000,-427.01664738,0.00025726,2]
[426802962,1782840638000,-537.35794251,0.00025726,2]
[426802963,1782840638000,-462.19244646,0.00025726,2]
[426802966,1782840638000,-314.92096442,0.00025726,2]
[426802965,1782840638000,-353.93699528,0.00025726,2]
[426802967,1782840638000,-202.98286544,0.00025726,2]
[426802964,1782840638000,-463.83042824,0.00025726,2]
[426802903,1782840638000,-150.0,0.00022508,2]
[426802968,1782840638000,-214.44888323,0.00025726,2]
[426802944,1782840638000,-155.04098883,0.00024967,2]
[426802938,1782840638000,-340.35390815,0.00024888,2]
[426802954,1782840638000,-402.52907639,0.00025726,2]
[426802940,1782840638000,-168.08656219,0.00024888,2]
[426802906,1782840638000,-162.33184866,0.00023631,2]
[426802939,1782840638000,-301.95339958,0.00024888,2]
[426802905,1782840638000,-209.0,0.00023,2]
[426802907,1782840638000,-182.36970622,0.00023631,2]
[426802911,1782840638000,-170.17695407,0.00023631,2]
[426802912,1782840638000,-150.97669979,0.00023631,2]
[426802909,1782840638000,-154.06414882,0.00023631,2]
[426802910,1782840638000,-154.61014275,0.00023631,2]
[426802908,1782840638000,-179.11931417,0.00023631,2]
[426802916,1782840638000,-184.1360257,0.00023631,2]
[426802917,1782840638000,-209.0,0.00024,2]
[426802920,1782840638000,-667.61,0.0002411,2]
[426802922,1782840638000,-152.0,0.00024201,3]
[426802923,1782840638000,-180.64,0.00024658,2]
[426802913,1782840638000,-155.67232324,0.00023631,2]
[426802936,1782840638000,-176.96849764,0.00024888,2]
[426802937,1782840638000,-157.46048221,0.00024888,2]
[426802925,1782840638000,-1000.0,0.00024658,2]
[426802935,1782840638000,-309.22028549,0.00024888,2]
[426802933,1782840638000,-358.23862834,0.00024888,2]
[426802934,1782840638000,-308.12829764,0.00024888,2]
[426802927,1782840638000,-175.1885114,0.00024888,2]
[426802928,1782840638000,-201.26453819,0.00024888,2]
[426802929,1782840638000,-324.66369732,0.00024888,2]
[426802930,1782840638000,-364.73941245,0.00024888,2]
[426802931,1782840638000,-158.87315997,0.00024888,2]
[426802926,1782840638000,-213.48,0.00024658,2]
[426802932,1782840638000,-213.50832369,0.00024888,2]
[426803007,1782840639000,-181.44064028,0.00026284,2]
[426803009,1782840639000,-618.44057098,0.00026284,2]
[426803011,1782840639000,-338.02696245,0.00026284,2]
[426803010,1782840639000,-530.90549292,0.00026284,2]
[426803006,1782840639000,-209.27073509,0.00026284,2]
[426803002,1782840639000,-640.52497107,0.00026284,2]
[426803004,1782840639000,-616.25659528,0.00026284,2]
[426803000,1782840639000,-182.27071979,0.00026284,2]
[426803001,1782840639000,-169.85334995,0.00026284,2]
[426803005,1782840639000,-237.44429726,0.00026284,2]
[426803008,1782840639000,-306.74442673,0.00026284,2]
[426803003,1782840639000,-716.47725668,0.00026284,2]
[426803012,1782840639000,-472.38144664,0.00026284,2]
[426803029,1782840639000,-622.68929296,0.00026285,2]
[426803018,1782840639000,-366.03614774,0.00026284,2]
[426803016,1782840639000,-381.76577315,0.00026284,2]
[426803013,1782840639000,-305.30180166,0.00026284,2]
[426803017,1782840639000,-680.7078163,0.00026284,2]
[426803015,1782840639000,-428.89776645,0.00026284,2]
[426803019,1782840639000,-170.35984602,0.00026284,2]
[426803021,1782840639000,-603.90679916,0.00026284,2]
[426803023,1782840639000,-424.58295022,0.00026285,2]
[426803020,1782840639000,-272.88659007,0.00026284,2]
[426803022,1782840639000,-192.80289623,0.00026285,2]
[426803024,1782840639000,-392.24471543,0.00026285,2]
[426803025,1782840639000,-319.54920007,0.00026285,2]
[426802999,1782840639000,-211.75039215,0.00026284,2]
[426803014,1782840639000,-327.54652578,0.00026284,2]
[426802998,1782840639000,-471.40624244,0.00026284,2]
[426802970,1782840639000,-183.01807387,0.00025726,2]
[426802996,1782840639000,-334.55986404,0.00026284,2]
[426803027,1782840639000,-504.25968656,0.00026285,2]
[426802969,1782840639000,-510.53086222,0.00025726,2]
[426802972,1782840639000,-452.93009937,0.00025726,2]
[426802971,1782840639000,-207.59051352,0.00025726,2]
[426802973,1782840639000,-289.01835501,0.00025726,2]
[426802978,1782840639000,-226.47260092,0.00025726,2]
[426802979,1782840639000,-247.98321862,0.00025726,2]
[426802974,1782840639000,-336.17312438,0.00025726,2]
[426802976,1782840639000,-328.54716033,0.00025726,2]
[426802977,1782840639000,-552.4080771,0.00025726,2]
[426802975,1782840639000,-467.01696972,0.00025726,2]
[426802980,1782840639000,-230.80236604,0.00025726,2]
[426802982,1782840639000,-476.86,0.00026027,7]
[426802981,1782840639000,-166.66,0.00025815,2]
[426802983,1782840639000,-415.18102705,0.00026159,2]
[426802985,1782840639000,-382.15404639,0.00026284,2]
[426802984,1782840639000,-194.15817916,0.00026284,2]
[426802993,1782840639000,-209.24524075,0.00026284,2]
[426802987,1782840639000,-151.81164047,0.00026284,2]
[426802986,1782840639000,-525.5655342,0.00026284,2]
[426802989,1782840639000,-649.32739464,0.00026284,2]
[426802990,1782840639000,-729.4788249,0.00026284,2]
[426802988,1782840639000,-603.79361458,0.00026284,2]
[426802991,1782840639000,-391.71047117,0.00026284,2]
[426802992,1782840639000,-322.41613983,0.00026284,2]
[426802994,1782840639000,-366.71367479,0.00026284,2]
[426802995,1782840639000,-474.89333994,0.00026284,2]
[426802997,1782840639000,-476.61947992,0.00026284,2]
[426803030,1782840639000,-221.67594002,0.00026285,2]
[426803087,1782840639000,-35698.17,0.00027397,10]
[426803026,1782840639000,-578.03671002,0.00026285,2]
[426803065,1782840639000,-675.0,0.00027397,5]
[426803063,1782840639000,-676.0,0.00027397,5]
[426803066,1782840639000,-681.0,0.00027397,5]
[426803064,1782840639000,-299.0,0.00027397,5]
[426803061,1782840639000,-160.0,0.00027397,10]
[426803067,1782840639000,-165.20765594,0.00027397,5]
[426803068,1782840639000,-250.0,0.00027397,5]
[426803070,1782840639000,-679.0,0.00027397,5]
[426803069,1782840639000,-1042.0,0.00027397,5]
[426803071,1782840639000,-1022.0,0.00027397,5]
[426803072,1782840639000,-151.0,0.00027397,5]
[426803078,1782840639000,-152.0,0.00027397,5]
[426803077,1782840639000,-1014.0,0.00027397,5]
[426803075,1782840639000,-152.0,0.00027397,5]
[426803076,1782840639000,-680.0,0.00027397,5]
[426803073,1782840639000,-675.0,0.00027397,5]
[426803080,1782840639000,-1014.0,0.00027397,5]
[426803079,1782840639000,-664.0,0.00027397,5]
[426803082,1782840639000,-681.0,0.00027397,5]
[426803081,1782840639000,-151.0,0.00027397,5]
[426803084,1782840639000,-152.0,0.00027397,5]
[426803085,1782840639000,-300.0,0.00027397,2]
[426803086,1782840639000,-31339.06,0.00027397,10]
[426803083,1782840639000,-384.0,0.00027397,5]
[426803088,1782840639000,-321.48666047,0.00027397,2]
[426803089,1782840639000,-159.5410629,0.00027397,2]
[426803028,1782840639000,-311.49221987,0.00026285,2]
[426803062,1782840639000,-160.0,0.00027397,10]
[426803060,1782840639000,-1500.0,0.00027397,2]
[426803074,1782840639000,-1024.0,0.00027397,5]
[426803057,1782840639000,-159.49295075,0.00027255,2]
[426803056,1782840639000,-504.0,0.00027137,2]
[426803032,1782840639000,-402.77523641,0.00026285,2]
[426803033,1782840639000,-299.54193882,0.00026285,2]
[426803031,1782840639000,-492.82074049,0.00026285,2]
[426803035,1782840639000,-736.5441028,0.00026285,2]
[426803036,1782840639000,-289.45297135,0.00026285,2]
[426803037,1782840639000,-495.96643724,0.00026285,2]
[426803040,1782840639000,-405.96573088,0.00026285,2]
[426803039,1782840639000,-183.64806678,0.00026285,2]
[426803038,1782840639000,-156.31206129,0.00026285,2]
[426803042,1782840639000,-224.69635559,0.00026285,2]
[426803041,1782840639000,-297.37458971,0.00026285,2]
[426803043,1782840639000,-461.60473207,0.00026285,2]
[426803046,1782840639000,-152.0,0.00026557,4]
[426803034,1782840639000,-164.53561992,0.00026285,2]
[426803053,1782840639000,-754.88349895,0.00026843,2]
[426803047,1782840639000,-2500.0,0.00026743,2]
[426803045,1782840639000,-185.27102826,0.00026285,2]
[426803049,1782840639000,-911.84853112,0.00026843,2]
[426803050,1782840639000,-770.3207441,0.00026843,2]
[426803052,1782840639000,-773.05071373,0.00026843,2]
[426803054,1782840639000,-778.36161619,0.00026843,2]
[426803048,1782840639000,-811.6592433,0.00026843,2]
[426803051,1782840639000,-895.59657085,0.00026843,2]
[426803044,1782840639000,-307.07884874,0.00026285,2]
[426803055,1782840639000,-920.6801285,0.00026843,2]
[426803058,1782840639000,-308.31963951,0.00027297,2]
[426803059,1782840639000,-4125.81,0.00027387,2]
[426803129,1782840640000,-150.0,0.00029,7]
[426803130,1782840640000,-150.0,0.00029,7]
[426803122,1782840640000,-152.0,0.00028913,5]
[426803131,1782840640000,-500.0,0.00029223,2]
[426803132,1782840640000,-372.67767247,0.00029223,2]
[426803128,1782840640000,-153.0,0.00029,7]
[426803124,1782840640000,-1276.58794357,0.00028938,2]
[426803126,1782840640000,-1082.27099922,0.00028938,2]
[426803125,1782840640000,-1253.8351992,0.00028938,2]
[426803123,1782840640000,-1136.32294063,0.00028938,2]
[426803119,1782840640000,-907.75915363,0.00028794,2]
[426803134,1782840640000,-1393.74,0.00029315,2]
[426803127,1782840640000,-1056.83689853,0.00028938,2]
[426803137,1782840640000,-1393.74,0.00029479,2]
[426803139,1782840640000,-10816.78,0.00029622,7]
[426803135,1782840640000,-159.49295075,0.00029382,2]
[426803136,1782840640000,-151.0,0.00029447,5]
[426803138,1782840640000,-1279.5,0.00029622,7]
[426803141,1782840640000,-1393.74,0.00029644,2]
[426803140,1782840640000,-160.0,0.00029622,7]
[426803143,1782840640000,-10344.0554,0.00029708,2]
[426803142,1782840640000,-504.0,0.00029695,4]
[426803149,1782840640000,-7419.67780632,0.000299,2]
[426803144,1782840640000,-1393.74,0.00029808,2]
[426803146,1782840640000,-308.31963946,0.00029898,2]
[426803145,1782840640000,-1097.61,0.0002989,2]
[426803147,1782840640000,-7419.67780639,0.000299,2]
[426803133,1782840640000,-150.0,0.00029223,2]
[426803120,1782840640000,-504.0,0.00028842,3]
[426803090,1782840640000,-319.08212579,0.00027397,2]
[426803115,1782840640000,-5834.0,0.00028229,2]
[426803092,1782840640000,-605.17276909,0.00027397,2]
[426803091,1782840640000,-151.29319227,0.00027397,2]
[426803093,1782840640000,-453.87957682,0.00027397,2]
[426803094,1782840640000,-302.58638454,0.00027397,2]
[426803095,1782840640000,-1097.61,0.000274,2]
[426803097,1782840640000,-5528.0,0.000275,5]
[426803098,1782840640000,-500.0,0.00027562,2]
[426803100,1782840640000,-1094.21823735,0.00027681,2]
[426803096,1782840640000,-500.0,0.000275,7]
[426803099,1782840640000,-973.99109197,0.00027681,2]
[426803101,1782840640000,-924.38489292,0.00027681,2]
[426803105,1782840640000,-934.03393943,0.00027681,2]
[426803103,1782840640000,-927.66085647,0.00027681,2]
[426803104,1782840640000,-905.86019874,0.00027681,2]
[426803106,1782840640000,-1104.8161542,0.00027681,2]
[426803102,1782840640000,-1074.71588503,0.00027681,2]
[426803108,1782840640000,-504.0,0.0002799,2]
[426803113,1782840640000,-1217.0,0.00028229,2]
[426803109,1782840640000,-158.6972837,0.00028128,2]
[426803111,1782840640000,-1362.0,0.00028229,2]
[426803107,1782840640000,-756.46596136,0.00027956,2]
[426803112,1782840640000,-1231.0,0.00028229,2]
[426803110,1782840640000,-283.0,0.00028229,2]
[426803114,1782840640000,-3651.0,0.00028229,2]
[426803117,1782840640000,-155.04098883,0.00028327,2]
[426803116,1782840640000,-180.64,0.0002831,2]
[426803118,1782840640000,-308.31963946,0.00028597,2]
[426803121,1782840640000,-605.79249916,0.00028904,2]
[426803148,1782840640000,-7419.67780632,0.000299,2]
[426803156,1782840640000,-1393.74,0.00029973,2]
[426803150,1782840640000,-7419.67780632,0.000299,2]
[426803185,1782840640000,-1000.0,0.00030136,2]
[426803186,1782840640000,-1000.0,0.00030136,2]
[426803187,1782840640000,-1000.0,0.00030136,2]
[426803188,1782840640000,-1000.0,0.00030136,2]
[426803190,1782840640000,-1000.0,0.00030136,2]
[426803189,1782840640000,-1000.0,0.00030136,2]
[426803192,1782840640000,-1000.0,0.00030136,2]
[426803191,1782840640000,-1000.0,0.00030136,2]
[426803195,1782840640000,-1000.0,0.00030136,2]
[426803198,1782840640000,-1000.0,0.00030136,2]
[426803193,1782840640000,-1000.0,0.00030136,2]
[426803194,1782840640000,-1000.0,0.00030136,2]
[426803199,1782840640000,-1000.0,0.00030136,2]
[426803196,1782840640000,-1000.0,0.00030136,2]
[426803197,1782840640000,-1000.0,0.00030136,2]
[426803203,1782840640000,-1000.0,0.00030136,2]
[426803200,1782840640000,-1000.0,0.00030136,2]
[426803204,1782840640000,-1000.0,0.00030136,2]
[426803202,1782840640000,-1000.0,0.00030136,2]
[426803201,1782840640000,-1000.0,0.00030136,2]
[426803207,1782840640000,-1000.0,0.00030136,2]
[426803208,1782840640000,-1000.0,0.00030136,2]
[426803206,1782840640000,-1000.0,0.00030136,2]
[426803205,1782840640000,-1000.0,0.00030136,2]
[426803210,1782840640000,-1000.0,0.00030136,2]
[426803209,1782840640000,-1000.0,0.00030136,2]
[426803151,1782840640000,-7419.67780632,0.000299,2]
[426803184,1782840640000,-1000.0,0.00030136,2]
[426803182,1782840640000,-1000.0,0.00030136,2]
[426803157,1782840640000,-7419.67780632,0.00029994,2]
[426803181,1782840640000,-1000.0,0.00030136,2]
[426803153,1782840640000,-7419.67780632,0.000299,2]
[426803155,1782840640000,-7419.67780632,0.000299,2]
[426803154,1782840640000,-7419.67780632,0.000299,2]
[426803183,1782840640000,-1000.0,0.00030136,2]
[426803158,1782840640000,-157.44,0.0003,2]
[426803161,1782840640000,-686.0,0.000301,5]
[426803159,1782840640000,-664.0,0.00030082,5]
[426803160,1782840640000,-682.0,0.00030095,5]
[426803162,1782840640000,-667.0,0.0003011,5]
[426803163,1782840640000,-663.0,0.0003012,5]
[426803164,1782840640000,-1097.61,0.00030126,2]
[426803166,1782840640000,-4125.81,0.00030126,2]
[426803165,1782840640000,-1097.61,0.00030126,2]
[426803152,1782840640000,-7419.67780632,0.000299,2]
[426803168,1782840640000,-1000.0,0.00030136,2]
[426803180,1782840640000,-1000.0,0.00030136,2]
[426803179,1782840640000,-1000.0,0.00030136,2]
[426803178,1782840640000,-1000.0,0.00030136,2]
[426803177,1782840640000,-1000.0,0.00030136,2]
[426803176,1782840640000,-1000.0,0.00030136,2]
[426803175,1782840640000,-1000.0,0.00030136,2]
[426803167,1782840640000,-1000.0,0.00030136,2]
[426803172,1782840640000,-1000.0,0.00030136,2]
[426803173,1782840640000,-1000.0,0.00030136,2]
[426803171,1782840640000,-1000.0,0.00030136,2]
[426803170,1782840640000,-1000.0,0.00030136,2]
[426803169,1782840640000,-1000.0,0.00030136,2]
[426803174,1782840640000,-1000.0,0.00030136,2]
[426803259,1782840641000,-1000.0,0.00030136,2]
[426803254,1782840641000,-1000.0,0.00030136,2]
[426803255,1782840641000,-1000.0,0.00030136,2]
[426803250,1782840641000,-1000.0,0.00030136,2]
[426803252,1782840641000,-1000.0,0.00030136,2]
[426803253,1782840641000,-1000.0,0.00030136,2]
[426803242,1782840641000,-1000.0,0.00030136,2]
[426803247,1782840641000,-1000.0,0.00030136,2]
[426803249,1782840641000,-1000.0,0.00030136,2]
[426803246,1782840641000,-1000.0,0.00030136,2]
[426803245,1782840641000,-1000.0,0.00030136,2]
[426803256,1782840641000,-1000.0,0.00030136,2]
[426803248,1782840641000,-1000.0,0.00030136,2]
[426803258,1782840641000,-1000.0,0.00030136,2]
[426803263,1782840641000,-1000.0,0.00030136,2]
[426803257,1782840641000,-1000.0,0.00030136,2]
[426803260,1782840641000,-1000.0,0.00030136,2]
[426803261,1782840641000,-1000.0,0.00030136,2]
[426803264,1782840641000,-1000.0,0.00030136,2]
[426803265,1782840641000,-1000.0,0.00030136,2]
[426803244,1782840641000,-1000.0,0.00030136,2]
[426803266,1782840641000,-1000.0,0.00030136,2]
[426803268,1782840641000,-191.07011172,0.00030137,2]
[426803269,1782840641000,-1393.75601054,0.00030137,2]
[426803267,1782840641000,-2219.0,0.00030137,5]
[426803270,1782840641000,-1000.0,0.00030137,120]
[426803272,1782840641000,-672.0,0.00030191,5]
[426803271,1782840641000,-799.95573595,0.0003014,7]
[426803262,1782840641000,-1000.0,0.00030136,2]
[426803243,1782840641000,-1000.0,0.00030136,2]
[426803232,1782840641000,-1000.0,0.00030136,2]
[426803240,1782840641000,-1000.0,0.00030136,2]
[426803211,1782840641000,-1000.0,0.00030136,2]
[426803212,1782840641000,-1000.0,0.00030136,2]
[426803213,1782840641000,-1000.0,0.00030136,2]
[426803217,1782840641000,-1000.0,0.00030136,2]
[426803216,1782840641000,-1000.0,0.00030136,2]
[426803215,1782840641000,-1000.0,0.00030136,2]
[426803214,1782840641000,-1000.0,0.00030136,2]
[426803218,1782840641000,-1000.0,0.00030136,2]
[426803219,1782840641000,-1000.0,0.00030136,2]
[426803220,1782840641000,-1000.0,0.00030136,2]
[426803222,1782840641000,-1000.0,0.00030136,2]
[426803225,1782840641000,-1000.0,0.00030136,2]
[426803221,1782840641000,-1000.0,0.00030136,2]
[426803223,1782840641000,-1000.0,0.00030136,2]
[426803224,1782840641000,-1000.0,0.00030136,2]
[426803227,1782840641000,-1000.0,0.00030136,2]
[426803226,1782840641000,-1000.0,0.00030136,2]
[426803228,1782840641000,-1000.0,0.00030136,2]
[426803229,1782840641000,-1000.0,0.00030136,2]
[426803230,1782840641000,-1000.0,0.00030136,2]
[426803231,1782840641000,-1000.0,0.00030136,2]
[426803233,1782840641000,-1000.0,0.00030136,2]
[426803237,1782840641000,-1000.0,0.00030136,2]
[426803234,1782840641000,-1000.0,0.00030136,2]
[426803273,1782840641000,-162.22,0.00030411,120]
[426803235,1782840641000,-1000.0,0.00030136,2]
[426803236,1782840641000,-1000.0,0.00030136,2]
[426803239,1782840641000,-1000.0,0.00030136,2]
[426803238,1782840641000,-1000.0,0.00030136,2]
[426803241,1782840641000,-1000.0,0.00030136,2]
[426803274,1782840641000,-210.94619351,0.00030411,60]
[426803251,1782840641000,-1000.0,0.00030136,2]
[426803276,1782840641000,-1498.62,0.0003054,26]
[426803307,1782840641000,-182.72727272,0.0003224,7]
[426803311,1782840641000,-209.58,0.00032672,3]
[426803312,1782840641000,-566.80769417,0.00032676,30]
[426803313,1782840641000,-7419.67780632,0.00032697,2]
[426803315,1782840641000,-158.69728368,0.00033218,2]
[426803319,1782840641000,-300.0,0.00033395,2]
[426803314,1782840641000,-504.0,0.00033105,8]
[426803316,1782840641000,-300.0,0.00033395,2]
[426803318,1782840641000,-300.0,0.00033395,2]
[426803317,1782840641000,-300.0,0.00033395,2]
[426803320,1782840641000,-300.0,0.00033395,2]
[426803323,1782840641000,-300.0,0.00033395,2]
[426803322,1782840641000,-300.0,0.00033395,2]
[426803325,1782840641000,-300.0,0.00033395,2]
[426803321,1782840641000,-300.0,0.00033395,2]
[426803326,1782840641000,-300.0,0.00033395,2]
[426803324,1782840641000,-300.0,0.00033395,2]
[426803327,1782840641000,-495.31706617,0.00033395,2]
[426803329,1782840641000,-300.0,0.00033395,2]
[426803332,1782840641000,-607.8838736,0.00033395,2]
[426803328,1782840641000,-300.0,0.00033395,2]
[426803331,1782840641000,-300.0,0.00033395,2]
[426803330,1782840641000,-300.0,0.00033395,2]
[426803333,1782840641000,-300.0,0.00033395,2]
[426803334,1782840641000,-300.0,0.00033395,2]
[426803335,1782840641000,-300.57574526,0.00033395,2]
[426803336,1782840641000,-301.17511918,0.00033395,2]
[426803275,1782840641000,-7419.67780632,0.00030534,2]
[426803338,1782840641000,-300.0,0.00033395,2]
[426803310,1782840641000,-209.0,0.00032622,30]
[426803309,1782840641000,-308.31963946,0.00032499,2]
[426803337,1782840641000,-300.0,0.00033395,2]
[426803306,1782840641000,-14909.07,0.00032232,7]
[426803308,1782840641000,-504.0,0.00032253,7]
[426803278,1782840641000,-209.0,0.00030622,30]
[426803280,1782840641000,-1236.88114196,0.00030823,2]
[426803279,1782840641000,-158.69728368,0.00030673,2]
[426803282,1782840641000,-7419.67780632,0.00031075,2]
[426803281,1782840641000,-1000.0,0.00031,7]
[426803283,1782840641000,-308.31963946,0.00031198,2]
[426803284,1782840641000,-283.0,0.00031229,2]
[426803285,1782840641000,-1362.0,0.00031229,2]
[426803286,1782840641000,-1226.58,0.00031229,2]
[426803287,1782840641000,-1217.0,0.00031229,2]
[426803288,1782840641000,-3651.0,0.00031229,2]
[426803291,1782840641000,-504.0,0.000314,6]
[426803289,1782840641000,-5834.0,0.00031229,2]
[426803290,1782840641000,-152.0,0.00031268,6]
[426803277,1782840641000,-504.0,0.00030548,5]
[426803292,1782840641000,-394.02,0.0003148,2]
[426803293,1782840641000,-159.49295075,0.00031509,2]
[426803303,1782840641000,-180.64,0.00031963,2]
[426803305,1782840641000,-7419.67780632,0.00032156,2]
[426803301,1782840641000,-155.051568,0.0003186,2]
[426803302,1782840641000,-155.051568,0.0003195,2]
[426803299,1782840641000,-155.051567,0.0003177,2]
[426803304,1782840641000,-11180.844,0.00032,2]
[426803300,1782840641000,-1000.0,0.00031842,30]
[426803298,1782840641000,-155.04098883,0.00031688,2]
[426803296,1782840641000,-211.02,0.00031657,3]
[426803294,1782840641000,-7419.67780632,0.00031616,2]
[426803295,1782840641000,-209.0,0.00031622,30]
[426803297,1782840641000,-155.051567,0.0003168,2]
[426803372,1782840642000,-300.0,0.00033395,2]
[426803383,1782840642000,-454.29401878,0.00033395,2]
[426803380,1782840642000,-300.0,0.00033395,2]
[426803381,1782840642000,-584.74673027,0.00033395,2]
[426803382,1782840642000,-300.0,0.00033395,2]
[426803376,1782840642000,-300.0,0.00033395,2]
[426803375,1782840642000,-300.0,0.00033395,2]
[426803373,1782840642000,-352.99118318,0.00033395,2]
[426803378,1782840642000,-300.0,0.00033395,2]
[426803374,1782840642000,-300.0,0.00033395,2]
[426803371,1782840642000,-569.05020943,0.00033395,2]
[426803377,1782840642000,-300.0,0.00033395,2]
[426803379,1782840642000,-513.9940935,0.00033395,2]
[426803391,1782840642000,-300.0,0.00033395,2]
[426803384,1782840642000,-300.0,0.00033395,2]
[426803388,1782840642000,-482.24974565,0.00033395,2]
[426803389,1782840642000,-300.0,0.00033395,2]
[426803386,1782840642000,-300.0,0.00033395,2]
[426803390,1782840642000,-446.13298497,0.00033395,2]
[426803387,1782840642000,-300.0,0.00033395,2]
[426803393,1782840642000,-300.0,0.00033395,2]
[426803394,1782840642000,-300.0,0.00033395,2]
[426803392,1782840642000,-300.0,0.00033395,2]
[426803395,1782840642000,-300.0,0.00033395,2]
[426803396,1782840642000,-1101.13386496,0.00033395,2]
[426803370,1782840642000,-300.0,0.00033395,2]
[426803397,1782840642000,-300.0,0.00033395,2]
[426803385,1782840642000,-300.0,0.00033395,2]
[426803369,1782840642000,-311.24105314,0.00033395,2]
[426803353,1782840642000,-300.0,0.00033395,2]
[426803366,1782840642000,-300.0,0.00033395,2]
[426803400,1782840642000,-300.0,0.00033395,2]
[426803339,1782840642000,-536.80437166,0.00033395,2]
[426803340,1782840642000,-301.17628441,0.00033395,2]
[426803342,1782840642000,-300.0,0.00033395,2]
[426803341,1782840642000,-730.16355908,0.00033395,2]
[426803344,1782840642000,-300.0,0.00033395,2]
[426803343,1782840642000,-303.39655282,0.00033395,2]
[426803345,1782840642000,-300.0,0.00033395,2]
[426803347,1782840642000,-300.0,0.00033395,2]
[426803346,1782840642000,-302.18244982,0.00033395,2]
[426803351,1782840642000,-300.0,0.00033395,2]
[426803348,1782840642000,-300.0,0.00033395,2]
[426803349,1782840642000,-300.0,0.00033395,2]
[426803368,1782840642000,-300.0,0.00033395,2]
[426803350,1782840642000,-300.0,0.00033395,2]
[426803354,1782840642000,-345.78163832,0.00033395,2]
[426803355,1782840642000,-300.0,0.00033395,2]
[426803356,1782840642000,-529.66240687,0.00033395,2]
[426803357,1782840642000,-300.0,0.00033395,2]
[426803358,1782840642000,-300.0,0.00033395,2]
[426803359,1782840642000,-300.0,0.00033395,2]
[426803365,1782840642000,-576.47447351,0.00033395,2]
[426803361,1782840642000,-954.35902138,0.00033395,2]
[426803362,1782840642000,-1807.41685047,0.00033395,2]
[426803360,1782840642000,-300.0,0.00033395,2]
[426803363,1782840642000,-300.0,0.00033395,2]
[426803364,1782840642000,-300.0,0.00033395,2]
[426803367,1782840642000,-597.30103364,0.00033395,2]
[426803352,1782840642000,-300.0,0.00033395,2]
[426803399,1782840642000,-300.0,0.00033395,2]
[426803446,1782840642000,-300.0,0.00033395,2]
[426803398,1782840642000,-300.0,0.00033395,2]
[426803436,1782840642000,-300.0,0.00033395,2]
[426803439,1782840642000,-529.66240687,0.00033395,2]
[426803443,1782840642000,-300.0,0.00033395,2]
[426803442,1782840642000,-300.0,0.00033395,2]
[426803441,1782840642000,-300.0,0.00033395,2]
[426803440,1782840642000,-300.0,0.00033395,2]
[426803438,1782840642000,-345.78163832,0.00033395,2]
[426803444,1782840642000,-954.35902138,0.00033395,2]
[426803445,1782840642000,-1807.41685047,0.00033395,2]
[426803447,1782840642000,-300.0,0.00033395,2]
[426803448,1782840642000,-576.47447351,0.00033395,2]
[426803449,1782840642000,-300.0,0.00033395,2]
[426803451,1782840642000,-300.0,0.00033395,2]
[426803450,1782840642000,-597.30103364,0.00033395,2]
[426803452,1782840642000,-311.24105314,0.00033395,2]